[Event "Titled Tuesday Blitz November 07 Early 2023"]
[White "Silvestre, Christian"]
[Black "Hajiyev, Kanan"]
[WhiteFideId "30956269"]
[BlackFideId "13404148"]
[WhiteElo "2205"]
[BlackElo "2506"]
[Result "0-1"]
[Round "9"]
[TimeControl "180+1"]
[Date "2023.11.07"]
[WhiteClock "0:00:07"]
[BlackClock "0:00:39"]
[Board "101"]

1. Nf3 {[%clk 0:02:56]}  c6 {[%clk 0:03:00]} 2. b3 {[%clk 0:02:53]}  d5 {[%clk 0:03:01]} 3. Bb2 {[%clk 0:02:52]}  Nf6 {[%clk 0:03:02]} 4. g3 {[%clk 0:02:52]}  g6 {[%clk 0:03:03]} 5. Bg2 {[%clk 0:02:53]}  Bg7 {[%clk 0:03:03]} 6. O-O {[%clk 0:02:53]}  O-O {[%clk 0:03:04]} 7. d3 {[%clk 0:02:53]}  a5 {[%clk 0:03:04]} 8. a3 {[%clk 0:02:52]}  Bg4 {[%clk 0:03:05]} 9. h3 {[%clk 0:02:51]}  Bxf3 {[%clk 0:03:04]} 10. exf3 {[%clk 0:02:48]}  Nbd7 {[%clk 0:03:05]} 11. f4 {[%clk 0:02:48]}  Nh5 {[%clk 0:03:05]} 12. Bxg7 {[%clk 0:02:46]}  Nxg7 {[%clk 0:03:06]} 13. d4 {[%clk 0:02:44]}  Qb6 {[%clk 0:03:02]} 14. Nc3 {[%clk 0:02:42]}  Nf5 {[%clk 0:02:58]} 15. Ne2 {[%clk 0:02:37]}  Nf6 {[%clk 0:02:57]} 16. c3 {[%clk 0:02:27]}  Kg7 {[%clk 0:02:58]} 17. b4 {[%clk 0:02:26]}  Ra7 {[%clk 0:02:53]} 18. Qd2 {[%clk 0:02:00]}  Rfa8 {[%clk 0:02:52]} 19. Qb2 {[%clk 0:02:00]}  Qb5 {[%clk 0:02:47]} 20. Rfe1 {[%clk 0:01:47]}  axb4 {[%clk 0:02:46]} 21. cxb4 {[%clk 0:01:43]}  Qd3 {[%clk 0:02:38]} 22. Red1 {[%clk 0:01:33]}  Qb5 {[%clk 0:02:38]} 23. Nc3 {[%clk 0:01:29]}  Qb6 {[%clk 0:02:35]} 24. Rd3 {[%clk 0:01:18]}  h5 {[%clk 0:02:18]} 25. a4 {[%clk 0:01:09]}  e6 {[%clk 0:02:11]} 26. Rb1 {[%clk 0:01:07]}  Nxd4 {[%clk 0:02:01]} 27. a5 {[%clk 0:01:02]}  Qc7 {[%clk 0:01:39]} 28. Rxd4 {[%clk 0:01:02]}  e5 {[%clk 0:01:40]} 29. fxe5 {[%clk 0:01:00]}  Qxe5 {[%clk 0:01:41]} 30. Rd3 {[%clk 0:00:44]}  Re8 {[%clk 0:01:34]} 31. Na4 {[%clk 0:00:41]}  Qxb2 {[%clk 0:01:27]} 32. Rxb2 {[%clk 0:00:42]}  Re1+ {[%clk 0:01:27]} 33. Kh2 {[%clk 0:00:40]}  Ra8 {[%clk 0:01:28]} 34. Nc5 {[%clk 0:00:40]}  Re7 {[%clk 0:01:26]} 35. Re3 {[%clk 0:00:37]}  Rae8 {[%clk 0:01:25]} 36. Rxe7 {[%clk 0:00:36]}  Rxe7 {[%clk 0:01:26]} 37. b5 {[%clk 0:00:36]}  Ne8 {[%clk 0:01:10]} 38. bxc6 {[%clk 0:00:28]}  bxc6 {[%clk 0:01:11]} 39. Rb7 {[%clk 0:00:27]}  Re2 {[%clk 0:01:10]} 40. a6 {[%clk 0:00:24]}  Rxf2 {[%clk 0:01:04]} 41. a7 {[%clk 0:00:23]}  Ra2 {[%clk 0:01:03]} 42. Kg1 {[%clk 0:00:18]}  Nd6 {[%clk 0:01:03]} 43. Rd7 {[%clk 0:00:17]}  Nb5 {[%clk 0:01:03]} 44. Ne6+ {[%clk 0:00:15]}  Kf6 {[%clk 0:01:03]} 45. Nd8 {[%clk 0:00:15]}  Rxa7 {[%clk 0:00:55]} 46. Rxa7 {[%clk 0:00:11]}  Nxa7 {[%clk 0:00:56]} 47. Kf2 {[%clk 0:00:10]}  Ke7 {[%clk 0:00:54]} 48. Nb7 {[%clk 0:00:11]}  Nb5 {[%clk 0:00:53]} 49. Ke3 {[%clk 0:00:11]}  Nc7 {[%clk 0:00:49]} 50. Nc5 {[%clk 0:00:11]}  Ne6 {[%clk 0:00:48]} 51. Nxe6 {[%clk 0:00:11]}  fxe6 {[%clk 0:00:49]} 52. Kd4 {[%clk 0:00:11]}  Kd6 {[%clk 0:00:49]} 53. g4 {[%clk 0:00:11]}  hxg4 {[%clk 0:00:49]} 54. hxg4 {[%clk 0:00:11]}  g5 {[%clk 0:00:50]} 55. Kd3 {[%clk 0:00:11]}  e5 {[%clk 0:00:49]} 56. Bh3 {[%clk 0:00:11]}  c5 {[%clk 0:00:49]} 57. Bf1 {[%clk 0:00:12]}  c4+ {[%clk 0:00:49]} 58. Ke3 {[%clk 0:00:13]}  Kc5 {[%clk 0:00:49]} 59. Be2 {[%clk 0:00:11]}  Kb4 {[%clk 0:00:46]} 60. Bd1 {[%clk 0:00:12]}  Kc3 {[%clk 0:00:46]} 61. Bf3 {[%clk 0:00:12]}  e4 {[%clk 0:00:41]} 62. Bd1 {[%clk 0:00:09]}  Kb2 {[%clk 0:00:40]} 63. Ba4 {[%clk 0:00:07]}  c3 {[%clk 0:00:38]} 64. Kd4 {[%clk 0:00:06]}  c2 {[%clk 0:00:39]} 65. Bxc2 {[%clk 0:00:06]}  Kxc2 {[%clk 0:00:40]} 66. Kxd5 {[%clk 0:00:06]}  e3 {[%clk 0:00:40]} 67. Ke4 {[%clk 0:00:06]}  e2 {[%clk 0:00:40]} 68. Kf5 {[%clk 0:00:07]}  e1=Q {[%clk 0:00:40]} 69. Kxg5 {[%clk 0:00:08]}  Qg3 {[%clk 0:00:37]} 70. Kf5 {[%clk 0:00:08]}  Qf3+ {[%clk 0:00:38]} 71. Kg5 {[%clk 0:00:08]}  Kd3 {[%clk 0:00:38]} 72. Kh5 {[%clk 0:00:07]}  Ke4 {[%clk 0:00:38]} 73. Kh4 {[%clk 0:00:08]}  Kf4 {[%clk 0:00:38]} 74. Kh5 {[%clk 0:00:07]}  Qxg4+ {[%clk 0:00:37]} 75. Kh6 {[%clk 0:00:08]}  Qg8 {[%clk 0:00:38]} 76. Kh5 {[%clk 0:00:07]}  Qg5# {[%clk 0:00:39]} 0-1


[Site "https://www.chess.com"]

[Event "Titled Tuesday Blitz November 07 Early 2023"]
[White "Bashirli, Saadat"]
[Black "Souleidis, Georgios"]
[WhiteFideId "13429990"]
[BlackFideId "4206827"]
[WhiteElo "2420"]
[BlackElo "2596"]
[Result "1-0"]
[Round "9"]
[TimeControl "180+1"]
[Date "2023.11.07"]
[WhiteClock "0:00:41"]
[BlackClock "0:00:07"]
[Board "102"]

1. d4 {[%clk 0:02:59]}  Nf6 {[%clk 0:02:59]} 2. e3 {[%clk 0:02:59]}  g6 {[%clk 0:02:57]} 3. f4 {[%clk 0:02:59]}  Bg7 {[%clk 0:02:58]} 4. Bd3 {[%clk 0:02:58]}  d6 {[%clk 0:02:58]} 5. Nf3 {[%clk 0:02:58]}  O-O {[%clk 0:02:58]} 6. O-O {[%clk 0:02:58]}  Nfd7 {[%clk 0:02:57]} 7. c3 {[%clk 0:02:56]}  e5 {[%clk 0:02:58]} 8. Nbd2 {[%clk 0:02:53]}  exf4 {[%clk 0:02:35]} 9. exf4 {[%clk 0:02:51]}  f5 {[%clk 0:02:34]} 10. b3 {[%clk 0:02:48]}  Nf6 {[%clk 0:02:34]} 11. Bb2 {[%clk 0:02:47]}  Re8 {[%clk 0:02:27]} 12. Qc2 {[%clk 0:02:46]}  Ng4 {[%clk 0:02:23]} 13. Rfe1 {[%clk 0:02:40]}  Nd7 {[%clk 0:02:13]} 14. Rxe8+ {[%clk 0:02:37]}  Qxe8 {[%clk 0:02:13]} 15. Re1 {[%clk 0:02:36]}  Qd8 {[%clk 0:01:34]} 16. Ng5 {[%clk 0:02:29]}  Nb6 {[%clk 0:01:28]} 17. Nc4 {[%clk 0:02:14]}  h6 {[%clk 0:01:25]} 18. Nxb6 {[%clk 0:02:12]}  axb6 {[%clk 0:01:26]} 19. Ne6 {[%clk 0:01:25]}  Bxe6 {[%clk 0:01:15]} 20. Rxe6 {[%clk 0:01:26]}  Qd7 {[%clk 0:01:15]} 21. Rxg6 {[%clk 0:01:22]}  Qe8 {[%clk 0:00:51]} 22. Bc4+ {[%clk 0:01:08]}  Kh7 {[%clk 0:00:36]} 23. Rxg4 {[%clk 0:00:58]}  Qe3+ {[%clk 0:00:08]} 24. Kf1 {[%clk 0:00:50]}  Rxa2 {[%clk 0:00:08]} 25. Qxf5+ {[%clk 0:00:43]}  Kh8 {[%clk 0:00:08]} 26. Qc8+ {[%clk 0:00:41]}  Kh7 {[%clk 0:00:07]} 27. Qg8# {[%clk 0:00:41]} 1-0


[Site "https://www.chess.com"]

[Event "Titled Tuesday Blitz November 07 Early 2023"]
[White "FuenfgegenWilly"]
[Black "Ronka, Erik"]
[BlackFideId "505080"]
[WhiteElo "2388"]
[BlackElo "2520"]
[Result "1-0"]
[Round "9"]
[TimeControl "180+1"]
[Date "2023.11.07"]
[WhiteClock "0:01:00"]
[BlackClock "0:00:03"]
[Board "104"]

1. d4 {[%clk 0:02:59]}  Nf6 {[%clk 0:02:57]} 2. Nf3 {[%clk 0:02:54]}  g6 {[%clk 0:02:50]} 3. g3 {[%clk 0:02:54]}  Bg7 {[%clk 0:02:51]} 4. Bg2 {[%clk 0:02:54]}  O-O {[%clk 0:02:52]} 5. O-O {[%clk 0:02:55]}  d6 {[%clk 0:02:52]} 6. Nc3 {[%clk 0:02:55]}  Nbd7 {[%clk 0:02:51]} 7. a4 {[%clk 0:02:54]}  e5 {[%clk 0:02:47]} 8. dxe5 {[%clk 0:02:53]}  Nxe5 {[%clk 0:02:47]} 9. a5 {[%clk 0:02:52]}  a6 {[%clk 0:02:43]} 10. Nxe5 {[%clk 0:02:49]}  dxe5 {[%clk 0:02:44]} 11. Qxd8 {[%clk 0:02:49]}  Rxd8 {[%clk 0:02:44]} 12. Bg5 {[%clk 0:02:50]}  Re8 {[%clk 0:02:23]} 13. Rfd1 {[%clk 0:02:45]}  c6 {[%clk 0:02:17]} 14. Bxf6 {[%clk 0:02:27]}  Bxf6 {[%clk 0:02:17]} 15. Ne4 {[%clk 0:02:28]}  Be7 {[%clk 0:02:11]} 16. Nd6 {[%clk 0:02:25]}  Rd8 {[%clk 0:02:09]} 17. Nc4 {[%clk 0:02:19]}  f6 {[%clk 0:01:09]} 18. Nb6 {[%clk 0:02:17]}  Rb8 {[%clk 0:01:03]} 19. Nxc8 {[%clk 0:02:17]}  Rbxc8 {[%clk 0:01:01]} 20. Bh3 {[%clk 0:02:18]}  Rb8 {[%clk 0:00:37]} 21. e4 {[%clk 0:01:44]}  Kf7 {[%clk 0:00:35]} 22. Kf1 {[%clk 0:01:42]}  Bc5 {[%clk 0:00:31]} 23. Ke2 {[%clk 0:01:38]}  Ke7 {[%clk 0:00:30]} 24. c3 {[%clk 0:01:37]}  Bd6 {[%clk 0:00:17]} 25. Rd3 {[%clk 0:01:33]}  b6 {[%clk 0:00:17]} 26. axb6 {[%clk 0:01:31]}  Rxb6 {[%clk 0:00:18]} 27. Rd2 {[%clk 0:01:12]}  Bc7 {[%clk 0:00:09]} 28. Rad1 {[%clk 0:01:00]}  Rxd2+ {[%clk 0:00:09]} 29. Rxd2 {[%clk 0:01:01]}  a5 {[%clk 0:00:03]} 30. Rd7+ {[%clk 0:01:00]} 1-0


[Site "https://www.chess.com"]

[Event "Titled Tuesday Blitz November 07 Early 2023"]
[White "Kochiev, Ivan"]
[Black "Goh, Zi Han"]
[WhiteFideId "2917890"]
[BlackFideId "5819156"]
[WhiteElo "2513"]
[BlackElo "2341"]
[Result "0-1"]
[Round "9"]
[TimeControl "180+1"]
[Date "2023.11.07"]
[WhiteClock "0:00:14"]
[BlackClock "0:00:15"]
[Board "106"]

1. e4 {[%clk 0:03:00]}  c5 {[%clk 0:02:59]} 2. Nc3 {[%clk 0:03:00]}  Nc6 {[%clk 0:02:57]} 3. f4 {[%clk 0:03:01]}  g6 {[%clk 0:02:44]} 4. Nf3 {[%clk 0:03:01]}  Bg7 {[%clk 0:02:44]} 5. Bc4 {[%clk 0:03:02]}  d6 {[%clk 0:02:42]} 6. d3 {[%clk 0:03:02]}  Nf6 {[%clk 0:02:41]} 7. O-O {[%clk 0:03:02]}  O-O {[%clk 0:02:40]} 8. Qe1 {[%clk 0:03:03]}  e6 {[%clk 0:02:36]} 9. Qh4 {[%clk 0:02:59]}  d5 {[%clk 0:02:35]} 10. Bb3 {[%clk 0:02:59]}  Nd4 {[%clk 0:02:29]} 11. f5 {[%clk 0:02:59]}  exf5 {[%clk 0:02:12]} 12. Bh6 {[%clk 0:02:59]}  dxe4 {[%clk 0:02:04]} 13. Ng5 {[%clk 0:02:54]}  exd3 {[%clk 0:01:55]} 14. Nd5 {[%clk 0:02:31]}  Nxb3 {[%clk 0:01:31]} 15. Bxg7 {[%clk 0:02:30]}  Kxg7 {[%clk 0:01:31]} 16. Nxf6 {[%clk 0:02:30]}  Qd4+ {[%clk 0:01:32]} 17. Qxd4 {[%clk 0:02:17]}  Nxd4 {[%clk 0:01:33]} 18. Ngxh7 {[%clk 0:02:15]}  Rh8 {[%clk 0:01:28]} 19. cxd3 {[%clk 0:02:04]}  Rxh7 {[%clk 0:01:28]} 20. Nxh7 {[%clk 0:02:04]}  Kxh7 {[%clk 0:01:29]} 21. Rae1 {[%clk 0:02:05]}  Be6 {[%clk 0:01:28]} 22. b3 {[%clk 0:02:04]}  a5 {[%clk 0:01:25]} 23. Re5 {[%clk 0:02:03]}  b6 {[%clk 0:01:22]} 24. h3 {[%clk 0:02:02]}  a4 {[%clk 0:01:22]} 25. bxa4 {[%clk 0:02:01]}  Rxa4 {[%clk 0:01:23]} 26. Rb1 {[%clk 0:02:02]}  Ra6 {[%clk 0:01:21]} 27. a4 {[%clk 0:01:57]}  Bb3 {[%clk 0:01:17]} 28. Re7 {[%clk 0:01:53]}  Kg7 {[%clk 0:01:14]} 29. Rd7 {[%clk 0:01:50]}  Bxa4 {[%clk 0:01:08]} 30. Rd6 {[%clk 0:01:49]}  Bc2 {[%clk 0:01:05]} 31. Rbxb6 {[%clk 0:01:48]}  Rxb6 {[%clk 0:01:06]} 32. Rxb6 {[%clk 0:01:49]}  Bxd3 {[%clk 0:01:07]} 33. Kf2 {[%clk 0:01:49]}  Be4 {[%clk 0:01:04]} 34. Ke3 {[%clk 0:01:46]}  Ne6 {[%clk 0:01:04]} 35. g3 {[%clk 0:01:41]}  Kf6 {[%clk 0:01:02]} 36. Rb8 {[%clk 0:01:39]}  c4 {[%clk 0:01:01]} 37. Rc8 {[%clk 0:01:39]}  Bd3 {[%clk 0:01:02]} 38. Ra8 {[%clk 0:01:32]}  Ng5 {[%clk 0:01:01]} 39. Ra6+ {[%clk 0:01:27]}  Kg7 {[%clk 0:01:01]} 40. h4 {[%clk 0:01:26]}  Ne4 {[%clk 0:01:01]} 41. Rc6 {[%clk 0:01:14]}  Nxg3 {[%clk 0:00:59]} 42. Kf4 {[%clk 0:01:14]}  Ne4 {[%clk 0:00:57]} 43. h5 {[%clk 0:01:13]}  c3 {[%clk 0:00:53]} 44. hxg6 {[%clk 0:01:13]}  fxg6 {[%clk 0:00:54]} 45. Ke3 {[%clk 0:01:12]}  Bb5 {[%clk 0:00:46]} 46. Rc7+ {[%clk 0:01:09]}  Kf6 {[%clk 0:00:46]} 47. Kf4 {[%clk 0:01:06]}  g5+ {[%clk 0:00:44]} 48. Ke3 {[%clk 0:01:06]}  g4 {[%clk 0:00:40]} 49. Kf4 {[%clk 0:01:06]}  g3 {[%clk 0:00:36]} 50. Kf3 {[%clk 0:01:05]}  Bd3 {[%clk 0:00:33]} 51. Rc6+ {[%clk 0:01:01]}  Ke5 {[%clk 0:00:32]} 52. Rc8 {[%clk 0:01:01]}  c2 {[%clk 0:00:30]} 53. Kg2 {[%clk 0:00:57]}  Kd4 {[%clk 0:00:30]} 54. Kh3 {[%clk 0:00:49]}  Ke3 {[%clk 0:00:29]} 55. Kg2 {[%clk 0:00:38]}  f4 {[%clk 0:00:29]} 56. Kh3 {[%clk 0:00:34]}  f3 {[%clk 0:00:29]} 57. Rc7 {[%clk 0:00:31]}  f2 {[%clk 0:00:29]} 58. Kg4 {[%clk 0:00:31]}  f1=R {[%clk 0:00:28]} 59. Kh5 {[%clk 0:00:31]}  c1=R {[%clk 0:00:28]} 60. Rg7 {[%clk 0:00:30]}  Kf2 {[%clk 0:00:24]} 61. Kg6 {[%clk 0:00:28]}  g2 {[%clk 0:00:24]} 62. Kh7 {[%clk 0:00:25]}  g1=B {[%clk 0:00:21]} 63. Kh8 {[%clk 0:00:24]}  Ke2 {[%clk 0:00:22]} 64. Rg2+ {[%clk 0:00:21]}  Bf2 {[%clk 0:00:21]} 65. Rg4 {[%clk 0:00:16]}  Rh1+ {[%clk 0:00:21]} 66. Kg7 {[%clk 0:00:16]}  Rhg1 {[%clk 0:00:22]} 67. Rg6 {[%clk 0:00:13]}  Rxg6+ {[%clk 0:00:22]} 68. Kh8 {[%clk 0:00:14]}  Rg2 {[%clk 0:00:14]} 69. Kh7 {[%clk 0:00:14]}  Rh1# {[%clk 0:00:15]} 0-1


[Site "https://www.chess.com"]

[Event "Titled Tuesday Blitz November 07 Early 2023"]
[White "Baches Garcia, Guillermo"]
[Black "Tharushi, T H D Niklesha"]
[WhiteFideId "2209764"]
[BlackFideId "9918264"]
[WhiteElo "2486"]
[BlackElo "2287"]
[Result "1-0"]
[Round "9"]
[TimeControl "180+1"]
[Date "2023.11.07"]
[WhiteClock "0:00:54"]
[BlackClock "0:00:12"]
[Board "108"]

1. d4 {[%clk 0:03:00]}  Nf6 {[%clk 0:02:56]} 2. Nf3 {[%clk 0:03:01]}  e6 {[%clk 0:02:55]} 3. Bg5 {[%clk 0:03:01]}  d5 {[%clk 0:02:50]} 4. e3 {[%clk 0:03:01]}  c5 {[%clk 0:02:46]} 5. Nbd2 {[%clk 0:03:01]}  Nc6 {[%clk 0:02:46]} 6. c3 {[%clk 0:03:01]}  Be7 {[%clk 0:02:45]} 7. Bd3 {[%clk 0:03:01]}  Qb6 {[%clk 0:02:43]} 8. Rb1 {[%clk 0:02:59]}  c4 {[%clk 0:02:42]} 9. Bc2 {[%clk 0:02:58]}  Qa5 {[%clk 0:02:42]} 10. a3 {[%clk 0:02:49]}  b5 {[%clk 0:02:39]} 11. e4 {[%clk 0:02:42]}  Qc7 {[%clk 0:02:17]} 12. Qe2 {[%clk 0:02:38]}  O-O {[%clk 0:02:06]} 13. e5 {[%clk 0:02:30]}  Nd7 {[%clk 0:01:55]} 14. Bxe7 {[%clk 0:02:22]}  Nxe7 {[%clk 0:01:56]} 15. Bxh7+ {[%clk 0:02:22]}  Kxh7 {[%clk 0:01:49]} 16. Ng5+ {[%clk 0:02:22]}  Kg6 {[%clk 0:01:49]} 17. Qg4 {[%clk 0:02:11]}  f5 {[%clk 0:01:49]} 18. Qh4 {[%clk 0:01:47]}  Nxe5 {[%clk 0:00:54]} 19. Qh7+ {[%clk 0:01:28]}  Kxg5 {[%clk 0:00:35]} 20. Qxg7+ {[%clk 0:01:20]}  N5g6 {[%clk 0:00:34]} 21. Nf3+ {[%clk 0:01:10]}  Kh5 {[%clk 0:00:13]} 22. Qh7+ {[%clk 0:01:02]}  Kg4 {[%clk 0:00:13]} 23. Qh3+ {[%clk 0:00:57]}  Kf4 {[%clk 0:00:11]} 24. Qg3+ {[%clk 0:00:57]}  Ke4 {[%clk 0:00:12]} 25. Nd2# {[%clk 0:00:54]} 1-0


[Site "https://www.chess.com"]

[Event "Titled Tuesday Blitz November 07 Early 2023"]
[White "LeoWin2012"]
[Black "Ionescu, Mihai"]
[BlackFideId "1202499"]
[WhiteElo "2288"]
[BlackElo "2451"]
[Result "1-0"]
[Round "9"]
[TimeControl "180+1"]
[Date "2023.11.07"]
[WhiteClock "0:01:23"]
[BlackClock "0:01:35"]
[Board "109"]

1. e4 {[%clk 0:03:00]}  c5 {[%clk 0:02:59]} 2. Nf3 {[%clk 0:03:00]}  e6 {[%clk 0:02:59]} 3. c4 {[%clk 0:02:58]}  Nc6 {[%clk 0:02:58]} 4. d4 {[%clk 0:02:57]}  cxd4 {[%clk 0:02:51]} 5. Nxd4 {[%clk 0:02:58]}  Nxd4 {[%clk 0:02:50]} 6. Qxd4 {[%clk 0:02:57]}  Ne7 {[%clk 0:02:51]} 7. Nc3 {[%clk 0:02:51]}  Nc6 {[%clk 0:02:51]} 8. Qd2 {[%clk 0:02:44]}  Bc5 {[%clk 0:02:51]} 9. b3 {[%clk 0:02:43]}  O-O {[%clk 0:02:50]} 10. Bb2 {[%clk 0:02:43]}  d6 {[%clk 0:02:50]} 11. Be2 {[%clk 0:02:41]}  e5 {[%clk 0:02:50]} 12. O-O {[%clk 0:02:38]}  Be6 {[%clk 0:02:45]} 13. Nd5 {[%clk 0:02:37]}  Nd4 {[%clk 0:02:40]} 14. Kh1 {[%clk 0:02:33]}  Bxd5 {[%clk 0:02:38]} 15. exd5 {[%clk 0:02:29]}  Nxe2 {[%clk 0:02:37]} 16. Qxe2 {[%clk 0:02:29]}  f5 {[%clk 0:02:37]} 17. f4 {[%clk 0:02:26]}  e4 {[%clk 0:02:32]} 18. Bc3 {[%clk 0:02:23]}  a5 {[%clk 0:02:29]} 19. Qb2 {[%clk 0:02:20]}  Qd7 {[%clk 0:02:26]} 20. a3 {[%clk 0:02:18]}  Rfe8 {[%clk 0:02:13]} 21. b4 {[%clk 0:02:17]}  Bb6 {[%clk 0:02:12]} 22. Rfb1 {[%clk 0:02:08]}  axb4 {[%clk 0:02:05]} 23. axb4 {[%clk 0:02:07]}  Rxa1 {[%clk 0:01:58]} 24. Rxa1 {[%clk 0:02:06]}  e3 {[%clk 0:01:58]} 25. Bd4 {[%clk 0:01:50]}  Bxd4 {[%clk 0:01:55]} 26. Qxd4 {[%clk 0:01:51]}  e2 {[%clk 0:01:55]} 27. Re1 {[%clk 0:01:50]}  Qa4 {[%clk 0:01:49]} 28. Qd2 {[%clk 0:01:47]}  Qb3 {[%clk 0:01:40]} 29. c5 {[%clk 0:01:42]}  Qxd5 {[%clk 0:01:35]} 30. Qxd5+ {[%clk 0:01:23]} 1-0


[Site "https://www.chess.com"]

[Event "Titled Tuesday Blitz November 07 Early 2023"]
[White "Polaczek, Richard"]
[Black "Samarth J Rao"]
[WhiteFideId "200026"]
[BlackFideId "46652370"]
[WhiteElo "2428"]
[BlackElo "2081"]
[Result "0-1"]
[Round "9"]
[TimeControl "180+1"]
[Date "2023.11.07"]
[WhiteClock "0:00:00"]
[BlackClock "0:00:02"]
[Board "112"]

1. d4 {[%clk 0:03:00]}  d5 {[%clk 0:02:56]} 2. c4 {[%clk 0:03:00]}  c6 {[%clk 0:02:56]} 3. Nc3 {[%clk 0:02:59]}  Nf6 {[%clk 0:02:54]} 4. cxd5 {[%clk 0:02:58]}  cxd5 {[%clk 0:02:55]} 5. Bf4 {[%clk 0:02:59]}  Nc6 {[%clk 0:02:53]} 6. e3 {[%clk 0:02:59]}  Bf5 {[%clk 0:02:49]} 7. Qb3 {[%clk 0:02:58]}  Qd7 {[%clk 0:02:48]} 8. Nf3 {[%clk 0:02:35]}  a6 {[%clk 0:02:32]} 9. Ne5 {[%clk 0:02:23]}  Qc8 {[%clk 0:02:32]} 10. Na4 {[%clk 0:02:02]}  Nxe5 {[%clk 0:02:10]} 11. Nb6 {[%clk 0:01:57]}  Qc6 {[%clk 0:01:58]} 12. dxe5 {[%clk 0:01:49]}  Bc2 {[%clk 0:01:53]} 13. Rc1 {[%clk 0:01:11]}  Bxb3 {[%clk 0:01:02]} 14. Rxc6 {[%clk 0:01:10]}  bxc6 {[%clk 0:00:57]} 15. exf6 {[%clk 0:01:07]}  exf6 {[%clk 0:00:34]} 16. axb3 {[%clk 0:00:54]}  Ra7 {[%clk 0:00:19]} 17. Na4 {[%clk 0:00:49]}  Rb7 {[%clk 0:00:17]} 18. Bxa6 {[%clk 0:00:44]}  Rxb3 {[%clk 0:00:17]} 19. O-O {[%clk 0:00:28]}  Rb4 {[%clk 0:00:16]} 20. Nc3 {[%clk 0:00:27]}  Rxb2 {[%clk 0:00:17]} 21. Ra1 {[%clk 0:00:19]}  Kd7 {[%clk 0:00:16]} 22. Kf1 {[%clk 0:00:16]}  h5 {[%clk 0:00:14]} 23. Bd3 {[%clk 0:00:14]}  Bc5 {[%clk 0:00:10]} 24. Bf5+ {[%clk 0:00:12]}  Ke7 {[%clk 0:00:11]} 25. Ra6 {[%clk 0:00:10]}  Rb6 {[%clk 0:00:06]} 26. Ra7+ {[%clk 0:00:09]}  Ke8 {[%clk 0:00:02]} 27. Ra8+ {[%clk 0:00:10]}  Ke7 {[%clk 0:00:02]} 28. Rxh8 {[%clk 0:00:09]}  g5 {[%clk 0:00:03]} 29. Bc7 {[%clk 0:00:07]}  Rb7 {[%clk 0:00:03]} 30. Ba5 {[%clk 0:00:06]}  Ra7 {[%clk 0:00:03]} 31. Bd8+ {[%clk 0:00:05]}  Kd6 {[%clk 0:00:02]} 32. h4 {[%clk 0:00:05]}  gxh4 {[%clk 0:00:02]} 33. Rxh5 {[%clk 0:00:04]}  Bb4 {[%clk 0:00:02]} 34. Bxf6 {[%clk 0:00:03]}  Ra1+ {[%clk 0:00:01]} 35. Ke2 {[%clk 0:00:02]}  Ra3 {[%clk 0:00:02]} 36. Rh6 {[%clk 0:00:00]}  Rb3 {[%clk 0:00:02]} 0-1


[Site "https://www.chess.com"]

[Event "Titled Tuesday Blitz November 07 Early 2023"]
[White "Pakleza, Zbigniew"]
[Black "Azali, Tannaz"]
[WhiteFideId "1119290"]
[BlackFideId "12537721"]
[WhiteElo "2723"]
[BlackElo "2424"]
[Result "1-0"]
[Round "9"]
[TimeControl "180+1"]
[Date "2023.11.07"]
[WhiteClock "0:02:26"]
[BlackClock "0:00:45"]
[Board "113"]

1. b4 {[%clk 0:03:00]}  Nf6 {[%clk 0:02:56]} 2. Bb2 {[%clk 0:03:00]}  e6 {[%clk 0:02:55]} 3. a3 {[%clk 0:02:58]}  d5 {[%clk 0:02:52]} 4. e3 {[%clk 0:02:58]}  c5 {[%clk 0:02:51]} 5. bxc5 {[%clk 0:02:56]}  Bxc5 {[%clk 0:02:51]} 6. Nf3 {[%clk 0:02:57]}  O-O {[%clk 0:02:50]} 7. c4 {[%clk 0:02:55]}  Nc6 {[%clk 0:02:45]} 8. cxd5 {[%clk 0:02:53]}  exd5 {[%clk 0:02:40]} 9. d4 {[%clk 0:02:52]}  Be7 {[%clk 0:02:40]} 10. Nbd2 {[%clk 0:02:52]}  Bg4 {[%clk 0:02:39]} 11. Bd3 {[%clk 0:02:49]}  Rc8 {[%clk 0:02:38]} 12. O-O {[%clk 0:02:49]}  h6 {[%clk 0:02:36]} 13. h3 {[%clk 0:02:48]}  Bh5 {[%clk 0:01:51]} 14. g4 {[%clk 0:02:46]}  Bg6 {[%clk 0:01:51]} 15. Bxg6 {[%clk 0:02:46]}  fxg6 {[%clk 0:01:51]} 16. Ne5 {[%clk 0:02:46]}  Nxe5 {[%clk 0:01:42]} 17. dxe5 {[%clk 0:02:46]}  Ne4 {[%clk 0:01:32]} 18. Nxe4 {[%clk 0:02:46]}  dxe4 {[%clk 0:01:32]} 19. Qxd8 {[%clk 0:02:47]}  Rfxd8 {[%clk 0:01:32]} 20. Rfd1 {[%clk 0:02:43]}  Rxd1+ {[%clk 0:01:06]} 21. Rxd1 {[%clk 0:02:43]}  Rc2 {[%clk 0:01:03]} 22. Rd7 {[%clk 0:02:42]}  Kf7 {[%clk 0:00:56]} 23. Rxb7 {[%clk 0:02:39]}  Ke6 {[%clk 0:00:55]} 24. Bd4 {[%clk 0:02:34]}  Bxa3 {[%clk 0:00:55]} 25. Rxa7 {[%clk 0:02:33]}  Bb2 {[%clk 0:00:52]} 26. Rxg7 {[%clk 0:02:26]}  Bxd4 {[%clk 0:00:52]} 27. exd4 {[%clk 0:02:27]}  g5 {[%clk 0:00:48]} 28. Rg6+ {[%clk 0:02:25]}  Kd5 {[%clk 0:00:48]} 29. Rd6+ {[%clk 0:02:25]}  Kc4 {[%clk 0:00:45]} 30. Rc6+ {[%clk 0:02:26]} 1-0


[Site "https://www.chess.com"]